bitfinex/quotes_SOLUSD_20241216
["timestamp","ask_amount","ask_price","bid_price","bid_amount"]
[1734374736580,16.41084778,219.71,219.68,20.0]
[1734374736776,0.5434865,219.78,219.68,20.0]
[1734374737102,16.41084778,219.71,219.68,20.0]
[1734374737489,16.41084778,219.69,219.64,20.0]
[1734374737899,16.41084778,219.7,219.64,20.0]
[1734374738790,16.41084778,219.69,219.64,20.0]
[1734374738992,16.41084778,219.65,219.59,6.73927838]
[1734374739179,23.776884,219.74,219.56,6.2181]
[1734374739180,16.41084778,219.63,219.56,6.2181]
[1734374739378,16.41084778,219.63,219.57,6.73927838]
[1734374739609,16.41084778,219.66,219.57,6.73927838]
[1734374739903,16.41084778,219.67,219.57,6.73927838]
[1734374740113,16.41084778,219.68,219.57,6.73927838]
[1734374740290,16.41084778,219.68,219.6,20.0]
[1734374740491,16.41084778,219.67,219.61,6.73927838]
[1734374740816,85.7,219.72,219.64,20.0]
[1734374741108,80.2,219.71,219.59,20.0]
[1734374741309,16.41084778,219.64,219.59,20.0]
[1734374741692,16.41084778,219.62,219.56,6.2181]
[1734374742005,5.0,219.72,219.56,6.2181]
[1734374742006,16.41084778,219.61,219.56,6.2181]
[1734374742217,5.0,219.72,219.56,6.2181]
[1734374742218,0.5434865,219.78,219.62,5.0]
[1734374742411,16.41084778,219.74,219.62,5.0]
[1734374742786,16.41084778,219.74,219.62,11.68769675]
[1734374742985,16.41084778,219.74,219.63,23.776884]
[1734374743201,16.41084778,219.74,219.67,23.776884]
[1734374743402,16.41084778,219.72,219.7,20.0]
[1734374743606,16.41084778,219.73,219.7,20.0]
[1734374743886,16.41084778,219.74,219.7,20.0]
[1734374744408,16.41084778,219.71,219.63,6.68769675]
[1734374744711,16.41084778,219.67,219.64,23.776884]
[1734374745007,16.41084778,219.69,219.64,23.776884]
[1734374745189,16.41084778,219.69,219.64,30.46458075]
[1734374745510,15.91084778,219.69,219.64,30.46458075]
[1734374745903,15.91084778,219.69,219.67,20.0]
[1734374746600,15.91084778,219.69,219.64,30.46458075]
[1734374747408,79.7,219.77,219.64,30.46458075]
[1734374747709,16.41084778,219.7,219.65,6.68769675]
[1734374748139,16.41084778,219.68,219.65,6.68769675]
[1734374748608,16.41084778,219.67,219.65,6.68769675]
[1734374748924,16.41084778,219.68,219.67,20.0]
[1734374749999,1.5359,219.75,219.67,20.0]
[1734374750000,16.41084778,219.69,219.68,20.0]
[1734374751114,16.41084778,219.69,219.57,5.34536144]
[1734374751430,16.41084778,219.59,219.58,6.68769675]
[1734374751914,16.41084778,219.67,219.58,6.68769675]
[1734374751915,16.41084778,219.6,219.58,6.68769675]
[1734374752288,16.41084778,219.61,219.58,6.68769675]
[1734374752705,16.41084778,219.61,219.6,20.0]
[1734374754117,16.41084778,219.61,219.58,6.68769675]
[1734374754118,16.41084778,219.65,219.61,20.0]
[1734374754925,16.41084778,219.64,219.61,20.0]
[1734374755220,16.41084778,219.63,219.61,20.0]
[1734374755999,16.41084778,219.63,219.58,6.68769675]
[1734374756201,16.41084778,219.61,219.58,6.68769675]
[1734374756607,16.41084778,219.6,219.58,6.68769675]
[1734374756910,16.41084778,219.61,219.58,6.68769675]
[1734374757732,16.41084778,219.61,219.6,20.0]
[1734374758927,16.41084778,219.61,219.57,20.0]
[1734374759097,16.41084778,219.59,219.57,20.0]
[1734374759295,6.3447,219.71,219.61,20.0]
[1734374759505,16.41084778,219.66,219.65,20.0]
[1734374762129,86.3591,219.76,219.65,20.0]
[1734374762369,16.41084778,219.66,219.65,20.0]
[1734374762563,16.41084778,219.66,219.61,20.0]
[1734374762767,2.2754,219.74,219.61,20.0]
[1734374762768,16.41084778,219.64,219.61,20.0]
[1734374763447,16.41084778,219.62,219.58,6.68769675]
[1734374763962,16.41084778,219.63,219.58,6.68769675]
[1734374764156,16.41084778,219.64,219.58,6.68769675]
[1734374764359,16.41084778,219.62,219.58,6.68769675]
[1734374764570,16.41084778,219.61,219.58,6.68769675]
[1734374764722,16.41084778,219.61,219.6,20.0]
[1734374765128,16.41084778,219.68,219.66,20.0]
[1734374765460,79.7,219.76,219.66,20.0]
[1734374765619,79.7,219.76,219.59,5.99835179]
[1734374765620,16.41084778,219.69,219.62,20.0]
[1734374766043,16.41084778,219.68,219.63,23.776884]
[1734374766245,16.41084778,219.67,219.66,20.0]
[1734374766651,16.41084778,219.67,219.62,20.0]
[1734374766844,16.41084778,219.65,219.62,20.0]
[1734374767633,16.41084778,219.66,219.62,20.0]
[1734374767834,16.41084778,219.65,219.62,20.0]
[1734374768078,16.41084778,219.63,219.57,6.24150786]
[1734374768254,16.41084778,219.67,219.57,6.24150786]
[1734374768255,16.41084778,219.6,219.57,6.24150786]
[1734374768651,16.41084778,219.58,219.51,12.13775179]
[1734374769163,16.41084778,219.6,219.52,6.24150786]
[1734374769375,81.2819,219.69,219.52,6.24150786]
[1734374769578,16.41084778,219.59,219.52,6.24150786]
[1734374770157,16.41084778,219.59,219.55,20.0]
[1734374771785,16.41084778,219.6,219.55,20.0]
[1734374772977,16.41084778,219.7,219.64,43.776884]
[1734374773154,16.95433428,219.78,219.64,43.776884]
[1734374773155,16.41084778,219.72,219.64,43.776884]
[1734374773482,16.41084778,219.71,219.65,20.0]
[1734374773774,16.41084778,219.71,219.67,20.0]
[1734374774373,0.5434865,219.78,219.67,20.0]
[1734374774571,16.41084778,219.71,219.67,20.0]
[1734374775076,16.41084778,219.7,219.65,20.0]
[1734374775498,16.41084778,219.71,219.66,20.0]
[1734374776194,26.21716699,219.71,219.66,20.0]
[1734374776864,26.21716699,219.72,219.66,20.0]
[1734374777394,26.21716699,219.7,219.66,20.0]
[1734374777557,26.21716699,219.71,219.66,20.0]
[1734374777884,26.21716699,219.74,219.69,20.0]
[1734374778570,26.21716699,219.73,219.69,20.0]
[1734374779365,26.76065349,219.78,219.69,20.0]
[1734374779366,26.21716699,219.74,219.69,20.0]
[1734374779981,26.21716699,219.73,219.69,20.0]
[1734374780685,26.21716699,219.72,219.69,20.0]
[1734374782591,26.21716699,219.73,219.69,20.0]
[1734374785791,26.21716699,219.74,219.69,20.0]
[1734374786903,26.21716699,219.71,219.69,20.0]
[1734374787186,26.21716699,219.7,219.69,20.0]
[1734374787387,26.21716699,219.72,219.69,20.0]
[1734374787596,26.21716699,219.73,219.69,20.0]
[1734374788393,26.21716699,219.72,219.69,20.0]
[1734374788889,26.21716699,219.73,219.69,20.0]
[1734374789979,26.21716699,219.72,219.69,20.0]
[1734374791495,26.21716699,219.73,219.69,20.0]
[1734374793303,26.21716699,219.72,219.69,20.0]
[1734374793689,26.21716699,219.73,219.69,20.0]
[1734374794172,26.21716699,219.72,219.69,20.0]
[1734374794367,26.21716699,219.71,219.69,20.0]
[1734374795166,26.21716699,219.7,219.69,20.0]
[1734374795366,26.21716699,219.7,219.65,20.0]
[1734374795615,26.21716699,219.66,219.65,20.0]
[1734374796088,7.14141203,219.74,219.65,20.0]
[1734374796287,16.3921762,219.67,219.65,20.0]
[1734374796866,16.3921762,219.66,219.61,5.99835179]
[1734374797064,16.3921762,219.67,219.61,5.99835179]
[1734374797065,16.3921762,219.62,219.61,5.99835179]
[1734374798168,16.3921762,219.62,219.55,7.5473]
[1734374798374,16.3921762,219.58,219.56,5.99835179]
[1734374798892,16.3921762,219.57,219.56,5.99835179]
[1734374799670,16.3921762,219.57,219.5,7.9022]
[1734374799978,16.3921762,219.55,219.51,5.99835179]
[1734374801086,16.3921762,219.53,219.51,5.99835179]
[1734374801286,16.3921762,219.54,219.51,5.99835179]
[1734374801481,79.7,219.64,219.54,20.0]
[1734374801482,16.3921762,219.55,219.54,20.0]
[1734374802182,23.9394762,219.67,219.54,20.0]
[1734374802183,16.3921762,219.57,219.54,20.0]
[1734374802487,16.3921762,219.6,219.55,5.99835179]
[1734374802687,16.3921762,219.6,219.58,20.0]
[1734374802888,16.3921762,219.59,219.58,20.0]
[1734374803473,23.9394762,219.67,219.58,20.0]
[1734374803671,16.3921762,219.59,219.58,20.0]
[1734374804276,16.3921762,219.6,219.58,20.0]
[1734374805475,1.5283,219.69,219.62,20.0]
[1734374805679,79.7,219.75,219.62,25.99835179]
[1734374805680,16.3921762,219.67,219.62,25.99835179]
[1734374805896,81.3296,219.75,219.62,25.99835179]
[1734374805897,16.3921762,219.68,219.66,20.0]
[1734374806205,16.3921762,219.69,219.66,20.0]
[1734374806992,16.3921762,219.68,219.66,20.0]
[1734374807195,16.3921762,219.69,219.66,20.0]
[1734374807388,1.6296,219.75,219.66,5.99835179]
[1734374807389,16.3921762,219.7,219.66,5.99835179]
[1734374807595,16.3921762,219.7,219.69,20.0]
[1734374808605,16.3921762,219.72,219.69,20.0]
[1734374809511,16.3921762,219.7,219.69,20.0]
[1734374811400,0.5434865,219.78,219.69,26.5898]
[1734374811609,0.5434865,219.78,219.77,20.0]
[1734374811833,0.5434865,219.78,219.77,33.44754966]
[1734374812406,0.5434865,219.78,219.77,57.22443366]
[1734374816418,0.5434865,219.78,219.77,57.9067718]
[1734374817606,1.5272,219.94,219.77,57.9067718]
[1734374817607,16.3921762,219.89,219.78,23.776884]
[1734374817818,16.3921762,219.9,219.82,43.776884]
[1734374818018,16.3921762,219.9,219.86,20.0]
[1734374818334,5.5349292,220.0,219.97,20.0]
[1734374818624,5.5349292,220.0,219.98,14.16977187]
[1734374819206,5.5349292,220.0,219.99,23.776884]
[1734374819530,2.5415292,220.0,219.99,38.62829496]
[1734374819741,2.92e-05,220.0,219.99,38.62829496]
[1734374820106,2.92e-05,220.0,219.99,37.94665587]
[1734374820431,2.92e-05,220.0,219.99,42.94665587]
[1734374821502,2.92e-05,220.0,219.99,37.94665587]
[1734374821747,2.92e-05,220.0,219.99,42.94665587]
[1734374821918,2.92e-05,220.0,219.99,47.94665587]
[1734374822117,2.92e-05,220.0,219.99,59.38962899]
[1734374822831,2.92e-05,220.0,219.99,54.38962899]
[1734374823410,2.92e-05,220.0,219.99,49.38962899]
[1734374823854,26.12468354,220.1,220.02,20.0]
[1734374824018,26.12468354,220.1,220.0,5.0]
[1734374824019,26.12468354,220.1,220.06,20.0]
[1734374824210,26.12468354,220.11,220.06,20.0]
[1734374824413,26.12468354,220.09,220.06,20.0]
[1734374824624,12.9201,220.19,220.06,20.0]
[1734374824625,26.12468354,220.07,220.06,20.0]
[1734374824820,26.12468354,220.07,220.03,6.69890734]
[1734374825021,26.12468354,220.11,220.03,6.69890734]
[1734374825022,26.12468354,220.06,220.03,6.69890734]
[1734374825226,26.12468354,220.08,220.03,6.69890734]
[1734374825434,26.12468354,220.09,220.04,7.47086453]
[1734374825665,26.12468354,220.09,220.03,6.69890734]
[1734374826220,26.12468354,220.09,220.06,20.0]
[1734374828019,26.12468354,220.07,220.06,20.0]
[1734374828215,26.12468354,220.07,219.96,1.81810031]
[1734374828216,26.12468354,220.07,219.96,1.1365]
[1734374828519,26.12468354,220.0,219.98,6.69890734]
[1734374828722,26.12468354,220.01,219.98,6.69890734]
[1734374829614,26.12468354,219.99,219.98,6.69890734]
[1734374829819,26.12468354,219.99,219.92,10.92309666]
[1734374829820,26.12468354,219.99,219.92,7.01514231]
[1734374830164,26.12468354,219.96,219.93,6.69890734]
[1734374830459,26.12468354,219.98,219.94,7.01514231]
[1734374830632,26.12468354,219.98,219.95,6.69890734]
[1734374830963,26.12468354,219.97,219.95,6.69890734]
[1734374831335,26.12468354,219.98,219.97,20.0]
[1734374831516,26.12468354,219.99,219.98,20.0]
[1734374833650,26.12468354,220.04,219.98,20.0]
[1734374833857,26.12468354,220.05,220.02,20.0]
[1734374834159,26.12468354,220.06,220.02,20.0]
[1734374834364,26.12468354,220.05,220.02,20.0]
[1734374834561,26.12468354,220.05,220.01,20.0]
[1734374834925,26.12468354,220.08,220.04,20.0]
[1734374835629,26.12468354,220.06,220.04,20.0]
[1734374836049,26.12468354,220.07,220.04,20.0]
[1734374836248,26.12468354,220.09,220.04,20.0]
[1734374836450,26.12468354,220.1,220.07,20.0]
[1734374837268,26.12468354,220.09,220.07,20.0]
[1734374837559,26.12468354,220.08,220.07,20.0]
[1734374838060,26.12468354,220.09,220.07,20.0]
[1734374838559,26.12468354,220.08,219.97,2.2729]
[1734374838762,26.12468354,220.04,220.01,20.0]
[1734374839060,26.12468354,220.04,219.98,6.69890734]
[1734374839061,26.12468354,220.05,219.98,6.69890734]
[1734374839271,26.12468354,220.04,219.98,6.69890734]
[1734374839479,5.0,220.13,219.98,13.06404965]
[1734374839649,26.12468354,220.06,219.99,6.36514231]
[1734374839846,26.12468354,220.06,220.0,6.69890734]
[1734374840063,16.33476333,220.06,220.0,6.69890734]
[1734374840240,16.33476333,220.05,220.03,20.0]
[1734374840756,16.33476333,220.06,220.03,20.0]
[1734374841146,16.33476333,220.05,220.03,20.0]
[1734374841346,16.33476333,220.06,220.03,20.0]
[1734374842065,16.33476333,220.11,220.07,20.0]
[1734374842369,16.33476333,220.12,220.07,20.0]
[1734374842540,16.33476333,220.14,220.11,20.0]
[1734374843144,16.33476333,220.15,220.11,20.0]
[1734374844081,26.11298538,220.15,220.11,20.0]
[1734374845388,26.11298538,220.16,220.11,20.0]
[1734374846187,26.11298538,220.15,220.11,20.0]
[1734374846565,26.11298538,220.16,220.11,20.0]
[1734374846752,26.11298538,220.17,220.14,20.0]
[1734374846957,26.65647188,220.22,220.14,20.0]
[1734374846958,26.11298538,220.18,220.14,20.0]
[1734374847361,26.11298538,220.17,220.14,20.0]
[1734374847785,26.11298538,220.18,220.14,20.0]
[1734374850063,26.11298538,220.17,220.14,20.0]
[1734374850901,26.11298538,220.18,220.14,20.0]
[1734374851180,0.5434865,220.22,220.17,20.0]
[1734374851386,26.11298538,220.18,220.17,20.0]
[1734374851566,26.11298538,220.19,220.17,43.776884]
[1734374851772,26.11298538,220.2,220.17,43.776884]
[1734374852668,26.09886482,220.21,220.17,43.776884]
[1734374853987,0.5434865,220.22,220.2,20.0]
[1734374854167,26.09886482,220.21,220.12,6.36514231]
[1734374854366,26.09886482,220.21,220.08,6.69890734]
[1734374854367,26.09886482,220.13,220.08,6.69890734]
[1734374854689,1.5455,220.21,220.09,6.36514231]
[1734374854893,1.5455,220.21,220.09,13.06404965]
[1734374855181,26.09886482,220.12,220.09,13.06404965]
[1734374855564,1.5455,220.21,220.09,6.69890734]
[1734374855565,26.09886482,220.1,220.09,6.69890734]
[1734374855889,26.09886482,220.11,220.09,6.69890734]
[1734374857179,1.5455,220.21,220.09,6.69890734]
[1734374857180,26.09886482,220.1,220.09,6.69890734]
[1734374857863,26.09886482,220.1,220.09,13.06404965]
[1734374858260,26.09886482,220.12,220.09,13.06404965]
[1734374858563,0.5434865,220.22,220.16,23.776884]
[1734374858759,26.09886482,220.2,220.19,20.0]
[1734374859682,0.5434865,220.22,220.21,23.776884]
[1734374861089,0.5434865,220.22,220.21,30.47579134]
[1734374863697,8.65e-05,220.22,220.21,62.25564332]
[1734374863897,8.65e-05,220.22,220.21,70.21808563]
[1734374864204,8.65e-05,220.22,220.21,60.41557972]
[1734374864501,8.65e-05,220.22,220.21,55.41557972]
[1734374866674,8.65e-05,220.22,220.21,56.55077972]
[1734374868694,8.65e-05,220.22,220.21,54.27249256]
[1734374868881,8.65e-05,220.22,220.21,14.19924965]
[1734374870592,8.65e-05,220.22,220.21,37.97613365]
[1734374870874,8.65e-05,220.22,220.21,36.84093365]
[1734374871071,16.29644541,220.22,220.21,13.06404965]
[1734374871409,16.29644541,220.22,220.21,6.69890734]
[1734374872607,16.29644541,220.22,220.21,30.47579134]
[1734374873817,16.29644541,220.22,220.21,6.69890734]
[1734374874108,32.59280432,220.22,220.11,2.78291197]
[1734374874319,16.29635891,220.14,220.11,2.78291197]
[1734374874508,16.29635891,220.16,220.11,2.78291197]
[1734374874690,16.29635891,220.16,220.11,10.28652538]
[1734374874890,16.29635891,220.15,220.11,10.28652538]
[1734374875081,16.29635891,220.14,220.11,7.50361341]
[1734374875488,16.29644541,220.22,220.11,7.50361341]
[1734374875489,16.29635891,220.16,220.11,7.50361341]
[1734374875726,16.29635891,220.16,220.14,20.0]
[1734374875906,16.29635891,220.17,220.14,20.0]
[1734374877183,16.29635891,220.18,220.14,20.0]
[1734374877383,16.29635891,220.16,220.14,20.0]
[1734374877577,16.29635891,220.16,220.11,6.36791341]
[1734374877783,16.29635891,220.15,220.11,6.36791341]
[1734374878014,16.29635891,220.15,220.12,5.72989063]
[1734374878401,16.29635891,220.16,220.12,5.72989063]
[1734374878603,16.29635891,220.15,220.11,6.36791341]
[1734374879192,16.29635891,220.15,220.14,20.0]
[1734374879986,16.29635891,220.18,220.14,20.0]
[1734374880187,16.29635891,220.16,220.15,20.0]
[1734374880688,16.29635891,220.16,220.14,20.0]
[1734374880893,16.29635891,220.15,220.14,20.0]
[1734374882735,16.29635891,220.16,220.15,20.0]
[1734374883030,16.29635891,220.16,220.14,20.0]
[1734374883031,16.29635891,220.17,220.14,20.0]
[1734374883265,16.29635891,220.16,220.14,25.72989063]
[1734374883415,16.29635891,220.17,220.14,25.72989063]
[1734374884126,16.29635891,220.17,220.14,20.0]
[1734374884454,16.29635891,220.18,220.17,20.0]
[1734374886338,16.29635891,220.21,220.18,20.0]
[1734374886541,16.29644541,220.22,220.18,20.0]
[1734374886921,8.65e-05,220.22,220.21,20.0]
[1734374888043,16.29644541,220.22,220.21,20.0]
[1734374888844,8.65e-05,220.22,220.21,43.776884]
[1734374889877,8.65e-05,220.22,220.21,73.26692093]
[1734374890547,8.65e-05,220.22,220.21,89.56327984]
[1734374890766,8.65e-05,220.22,220.21,94.48704912]
[1734374891175,8.65e-05,220.22,220.21,108.10704912]
[1734374891376,0.5434865,220.43,220.21,108.10704912]
[1734374891377,8.5431865,220.43,220.34,20.0]
[1734374891545,16.29635891,220.37,220.34,20.0]
[1734374891868,16.29635891,220.39,220.35,20.0]
[1734374892082,8.5431865,220.43,220.36,20.0]
[1734374892374,0.5434865,220.43,220.39,20.0]
[1734374892536,0.5434865,220.43,220.41,20.0]
[1734374892745,16.29635891,220.42,220.4,20.0]
[1734374892971,16.29635891,220.41,220.4,20.0]
[1734374893176,16.29635891,220.42,220.4,20.0]
[1734374893633,16.29635891,220.41,220.4,20.0]
[1734374893834,16.29635891,220.41,220.31,6.32858739]
[1734374894050,16.29635891,220.34,220.31,6.32858739]
[1734374894261,16.29635891,220.33,220.31,6.32858739]
[1734374894445,26.06784104,220.33,220.31,6.32858739]
[1734374894664,0.5434865,220.43,220.31,6.32858739]
[1734374894665,26.06784104,220.34,220.31,6.32858739]
[1734374894863,26.06784104,220.35,220.31,6.32858739]
[1734374895178,26.06784104,220.34,220.33,20.0]
[1734374895473,26.06784104,220.35,220.34,20.0]
[1734374895632,0.5434865,220.43,220.35,20.0]
[1734374895837,26.06784104,220.36,220.35,20.0]
[1734374897675,26.06549229,220.36,220.35,20.0]
[1734374898190,26.06549229,220.36,220.34,20.0]
[1734374898349,26.06549229,220.35,220.34,20.0]
[1734374899046,26.06549229,220.35,220.31,6.32858739]
[1734374899257,26.06549229,220.35,220.33,20.0]
[1734374899550,26.06549229,220.34,220.33,20.0]
[1734374899980,26.06549229,220.35,220.34,20.0]
[1734374900153,26.06549229,220.37,220.36,20.0]
[1734374901041,26.06549229,220.38,220.36,20.0]
[1734374901465,26.06549229,220.37,220.36,20.0]
[1734374902545,26.06549229,220.37,220.34,20.0]
[1734374902754,26.06549229,220.35,220.34,20.0]
[1734374904147,26.06549229,220.36,220.34,20.0]
[1734374904346,26.06549229,220.37,220.34,20.0]
[1734374904546,26.06549229,220.38,220.34,20.0]
[1734374905260,26.06549229,220.38,220.37,20.0]
[1734374905458,26.06549229,220.38,220.35,20.0]
[1734374907765,26.06549229,220.39,220.35,20.0]
[1734374908370,26.06549229,220.38,220.35,20.0]
[1734374909162,26.06549229,220.39,220.35,20.0]
[1734374909371,0.5434865,220.43,220.35,20.0]
[1734374909372,26.06549229,220.4,220.35,20.0]
[1734374909675,26.06549229,220.37,220.35,25.72989063]
[1734374910059,26.06549229,220.38,220.35,25.72989063]
[1734374910250,26.06549229,220.37,220.35,25.72989063]
[1734374910456,26.06549229,220.39,220.35,25.72989063]
[1734374911384,26.06549229,220.4,220.39,20.0]
[1734374912169,26.06549229,220.4,220.31,6.32858739]
[1734374912482,26.06549229,220.4,220.3,6.02083648]
[1734374912483,26.06549229,220.32,220.3,6.02083648]
[1734374912791,26.06549229,220.31,220.26,12.45158739]
[1734374912973,26.06549229,220.3,220.26,12.45158739]
[1734374913178,26.06549229,220.3,220.26,18.47242387]
[1734374913378,26.06549229,220.31,220.26,18.47242387]
[1734374913561,26.06549229,220.32,220.27,12.34942387]
[1734374913893,26.06549229,220.32,220.3,20.0]
[1734374914479,26.06549229,220.31,220.3,20.0]
[1734374914969,26.06549229,220.32,220.3,20.0]
[1734374915166,26.06549229,220.31,220.3,20.0]
[1734374916187,26.06549229,220.34,220.3,32.34942387]
[1734374916387,26.06549229,220.37,220.34,20.0]
[1734374916603,26.06549229,220.39,220.37,20.0]
[1734374916899,0.5434865,220.43,220.38,20.0]
[1734374917489,26.06549229,220.39,220.38,20.0]
[1734374918161,26.06549229,220.39,220.25,5.49415226]
[1734374918359,26.06549229,220.31,220.26,6.32858739]
[1734374918692,26.06549229,220.31,220.26,12.40764999]
[1734374918896,26.06549229,220.33,220.27,5.39828092]
[1734374919062,26.06549229,220.33,220.28,6.32858739]
[1734374919258,26.06549229,220.33,220.31,20.0]
[1734374919969,26.06549229,220.34,220.31,20.0]
[1734374920385,26.06549229,220.34,220.31,26.32858739]
[1734374920591,26.06549229,220.35,220.31,26.32858739]
[1734374920770,26.06549229,220.34,220.31,26.32858739]
[1734374921381,26.06549229,220.35,220.31,31.72686831]
[1734374921697,26.06549229,220.34,220.31,31.72686831]
[1734374921888,26.06549229,220.35,220.32,5.39828092]
[1734374922394,16.29039995,220.35,220.34,20.0]
[1734374922573,0.5434865,220.43,220.35,20.0]
[1734374922898,16.29039995,220.39,220.37,20.0]
[1734374923775,16.29039995,220.38,220.37,20.0]
[1734374924280,16.29039995,220.39,220.37,20.0]
[1734374927407,0.5434865,220.43,220.24,6.1538]
[1734374927408,16.29039995,220.38,220.24,6.1538]
[1734374927608,0.5434865,220.43,220.29,6.32858739]
[1734374927609,16.29039995,220.31,220.29,6.32858739]
[1734374928219,16.29039995,220.3,220.29,6.32858739]
[1734374928787,16.29039995,220.32,220.29,6.32858739]
[1734374928997,16.29039995,220.32,220.29,11.72686831]
[1734374929307,16.29039995,220.33,220.3,11.72686831]
[1734374929491,16.29039995,220.33,220.32,20.0]
[1734374930203,0.5434865,220.43,220.35,20.0]
[1734374930388,16.29039995,220.36,220.35,20.0]
[1734374939104,16.29039995,220.36,220.25,5.49415226]
[1734374939304,16.29039995,220.36,220.24,7.668]
[1734374939305,16.29039995,220.28,220.24,1.5142]
[1734374939618,16.29039995,220.28,220.24,7.84278739]
[1734374939831,10.27259995,220.27,220.24,6.32858739]
[1734374940328,16.29039995,220.28,220.24,6.32858739]
[1734374940515,16.29039995,220.28,220.24,11.72686831]
[1734374940716,16.29039995,220.29,220.28,20.0]
[1734374941114,16.29039995,220.3,220.28,26.32858739]
[1734374942233,16.29039995,220.31,220.28,26.32858739]
[1734374943132,16.29039995,220.32,220.28,26.32858739]
[1734374943434,16.2904,220.42,220.28,26.32858739]
[1734374943617,2.2041865,220.43,220.32,20.0]
[1734374943931,16.29039995,220.33,220.32,20.0]
[1734374944114,16.29039995,220.33,220.26,6.32858739]
[1734374944314,13.79549995,220.3,220.29,20.0]
[1734374944520,16.29039995,220.32,220.29,20.0]
[1734374944816,16.29039995,220.32,220.29,6.32858739]
[1734374945222,16.29039995,220.32,220.31,20.0]
[1734374945404,16.29039995,220.32,220.31,19.5]
[1734374946613,5.0,220.42,220.31,19.5]
[1734374946800,16.29039995,220.35,220.31,25.82858739]
[1734374947006,16.29039995,220.35,220.32,11.72686831]
[1734374947206,2.2041865,220.43,220.33,23.776884]
[1734374947207,16.29039995,220.39,220.33,23.776884]
[1734374947406,16.29039995,220.39,220.36,20.0]
[1734374947632,16.29039995,220.38,220.36,31.72686831]
[1734374947930,16.29039995,220.37,220.36,31.72686831]
[1734374948137,16.29039995,220.37,220.36,26.32858739]
[1734374948352,16.29039995,220.39,220.36,26.32858739]
[1734374949618,0.5434865,220.43,220.36,26.32858739]
[1734374949819,0.5434865,220.43,220.4,20.0]
[1734374949820,8.65e-05,220.43,220.4,20.0]
[1734374950021,8.65e-05,220.43,220.41,12.0242761]
[1734374951962,8.65e-05,220.43,220.42,23.776884]
[1734374952123,1.5837,220.64,220.49,20.0]
[1734374952325,16.29039995,220.6,220.53,20.0]
[1734374952636,16.29039995,220.6,220.53,25.69568871]
[1734374953023,16.29039995,220.59,220.53,25.69568871]
[1734374953229,16.29039995,220.58,220.53,25.69568871]
[1734374953444,16.29039995,220.59,220.53,25.69568871]
[1734374954339,16.29039995,220.6,220.53,25.69568871]
[1734374954539,16.29039995,220.61,220.54,23.776884]
[1734374954743,16.29039995,220.58,220.53,25.69568871]
[1734374954933,16.29039995,220.58,220.53,20.0]
[1734374955653,16.29039995,220.58,220.5,12.0242761]
[1734374955654,16.29039995,220.54,220.5,5.69568871]
[1734374955818,6.5837,220.64,220.39,7.942]
[1734374955819,16.29039995,220.53,220.45,11.67261888]
[1734374956018,16.29039995,220.52,220.45,11.67261888]
[1734374956238,16.29039995,220.53,220.46,5.69568871]
[1734374956633,16.29039995,220.54,220.46,11.67261888]
[1734374956948,16.29039995,220.56,220.47,5.97693017]
[1734374957160,16.29039995,220.56,220.5,20.0]
[1734374957473,16.29039995,220.56,220.51,20.0]
[1734374957649,16.29039995,220.56,220.5,25.69568871]
[1734374958041,16.29039995,220.53,220.5,20.0]
[1734374958561,16.29039995,220.54,220.5,20.0]
[1734374958769,16.29039995,220.52,220.5,20.0]
[1734374958955,16.29039995,220.53,220.5,20.0]
[1734374959164,5.0,220.63,220.5,20.0]
[1734374959165,16.29039995,220.54,220.5,20.0]
[1734374959462,4.9829,220.64,220.5,20.0]
[1734374959463,16.29039995,220.55,220.5,20.0]
[1734374959652,16.29039995,220.56,220.5,20.0]
[1734374959853,16.29039995,220.57,220.5,25.69568871]
[1734374960559,16.29039995,220.53,220.5,20.0]
[1734374960764,16.29039995,220.54,220.5,20.0]
[1734374961270,16.29039995,220.53,220.5,20.0]
[1734374961585,16.29039995,220.56,220.5,20.0]
[1734374961948,16.29039995,220.59,220.5,20.0]
[1734374962147,16.29039995,220.59,220.5,25.69568871]
[1734374963039,1.5837,220.64,220.51,23.776884]
[1734374963244,1.5837,220.64,220.54,20.0]
[1734374963245,16.29039995,220.62,220.54,20.0]
[1734374963638,16.29039995,220.61,220.54,20.0]